Workbook

Sheet RESUMEN EJECUTIVO
B6: RESUMEN EJECUTIVO DE VENTA
B8: DATOS DEL CLIENTE
B10: TIPO DE CONTRATO: | E10: ='DATOS DEL CLIENTE '!S4 -> 0 | L10: CORREO: | M10: =IF('DATOS DEL CLIENTE '!S4="PERSONA FISICA ",'DATOS DEL CLIENTE '!P9,IF('DATOS DEL CLIENTE '!S4="PERSONA MORAL",'DATOS DEL CLIENTE '!E48&'DATOS DEL CLIENTE '!A23&'DATOS DEL CLIENTE '!P57&'DATOS DEL CLIENTE '!A23&'DATOS DEL CLIENTE '!P65,IF('DATOS DEL CLIENTE '!S4="COPROPIEDAD ",'DATOS DEL CLIENTE '!P24&'DATOS DEL CLIENTE '!A23&'DATOS DEL CLIENTE '!P32,""))) -> 
B12: NOMBRE DE EMPRESA: | E12: ='DATOS DEL CLIENTE '!E46:AD46 -> 0
B14: NOMBRE DEL CLIENTE: | E14: =IF('DATOS DEL CLIENTE '!S4="PERSONA FISICA ",'DATOS DEL CLIENTE '!H7,IF('DATOS DEL CLIENTE '!S4="PERSONA MORAL",'DATOS DEL CLIENTE '!H55&'DATOS DEL CLIENTE '!A23&'DATOS DEL CLIENTE '!H63,IF('DATOS DEL CLIENTE '!S4="COPROPIEDAD ",'DATOS DEL CLIENTE '!H22&'DATOS DEL CLIENTE '!A23&'DATOS DEL CLIENTE '!H30,""))) -> 
B16: USO DE PROPIEDAD: | E16: ='DATOS DEL CLIENTE '!H4 -> 0 | L16: TEL.: | M16: =IF('DATOS DEL CLIENTE '!S4="PERSONA FISICA ",'DATOS DEL CLIENTE '!AF7,IF('DATOS DEL CLIENTE '!S4="PERSONA MORAL",'DATOS DEL CLIENTE '!AF46&'DATOS DEL CLIENTE '!A23&'DATOS DEL CLIENTE '!AF55&'DATOS DEL CLIENTE '!A23&'DATOS DEL CLIENTE '!AF30,IF('DATOS DEL CLIENTE '!S4="COPROPIEDAD ",'DATOS DEL CLIENTE '!AF22&'DATOS DEL CLIENTE '!A23&'DATOS DEL CLIENTE '!AF30,""))) -> 
B18: INFORMACIÓN DE VENTA
B20: REFRERENCIA | D20: =SIMULADOR!M8 -> 15SUR_57B
K22: SIN/IVA | M22: C/IVA
B23: M2: | D23: =SIMULADOR!F15 -> 400 | I23: A FINANCIAR: | K23: =SIMULADOR!K23 -> 3519084.66 | M23: =SIMULADOR!M23 -> 3969527.496
B24: TIPO: | D24: =SIMULADOR!E14 -> NAVE
B25: P. U. LISTA: | D25: =SIMULADOR!F17 -> 14786.07 | I25: TEMPORALIDAD: | K25: =SIMULADOR!G22 -> 10
B26: DESCUENTO: | D26: =SIMULADOR!N15 -> 0.15 | I26: TASA DE INTERÉS: | K26: =SIMULADOR!G23/12 -> 3 | M26: =SIMULADOR!H23 -> 0
B27: P.U. DESCUENTO: | D27: =SIMULADOR!F18 -> 12568.1595 | I27: TASA DE INTERÉS: | K27: =SIMULADOR!G24/12 -> 7 | M27: =SIMULADOR!H24 -> 0.02
B28: ENGANCHE | C28: =SIMULADOR!N18 -> 0.3 | D28: =SIMULADOR!K18 -> 1508179.14
B29: Desc. 10% Enganche: | D29: =SIMULADOR!K19 -> 0 | I29: =SIMULADOR!J37 -> ENGANCHE DIFERIDO: | L29: =SIMULADOR!K37 -> NAVE-CDA 10%,10% 10%
D30: SIN/IVA | F30: C/IVA | K30: =IF(SIMULADOR!J37="ENGANCHE DIFERIDO:","SIN/IVA","") -> SIN/IVA | M30: =IF(SIMULADOR!J37="ENGANCHE DIFERIDO:","C/IVA","") -> C/IVA
B31: ENGANCHE REAL | D31: =SIMULADOR!K21 -> 1508179.14 | F31: =SIMULADOR!M21 -> 1701226.07 | I31: =SIMULADOR!K39 -> PAGO INMEDIATO | K31: =SIMULADOR!L39 -> 502726.38 | M31: =SIMULADOR!N39 -> 567075.3566 | O31: =IF(SIMULADOR!J37="ENGANCHE DIFERIDO:","NO INCLUYE MENSUALIDAD","") -> NO INCLUYE MENSUALIDAD
B33: TOTAL A PAGAR | D33: =SIMULADOR!K22 -> 5027263.8 | F33: =SIMULADOR!M22 -> 5670753.566 | I33: =SIMULADOR!K40 -> 12 | K33: =SIMULADOR!L40 -> 502726.38 | M33: =SIMULADOR!N40 -> 567075.3566 | O33: =IF(SIMULADOR!J37="ENGANCHE DIFERIDO:","NO INCLUYE MENSUALIDAD","") -> NO INCLUYE MENSUALIDAD
E35: 2025-01-01 | I35: =SIMULADOR!K41 -> 24 | K35: =SIMULADOR!L41 -> 502726.38 | M35: =SIMULADOR!N41 -> 567075.3566 | O35: =IF(SIMULADOR!J37="ENGANCHE DIFERIDO:","NO INCLUYE MENSUALIDAD","") -> NO INCLUYE MENSUALIDAD
B36: MES DE ENTREGA | E36: =IF(SIMULADOR!H9="AEROPUERTO (Lote)",18,IF(SIMULADOR!H9="AEROPUERTO (Nave)",18,IF(SIMULADOR!H9="PEDRO ESCOBEDO (Lote)",24,IF(SIMULADOR!H9="PEDRO ESCOBEDO (NAVE)",24,IF(SIMULADOR!H9="GAMMA II ETAPA 1",6,IF(SIMULADOR!H9="GAMMA II ETAPA 2",6,IF(SIMULADOR!H9="CELTA",36,IF(SIMULADOR!H9="STA ROSA (Nave)",4,IF(AND(SIMULADOR!H9="CALAMANDA (NAVE)",SIMULADOR!G20="FINANCIAMIENTO 1"),36,IF(AND(SIMULADOR!H9="CALAMANDA (NAVE)",SIMULADOR!G20="FINANCIAMIENTO 2"),24,IF(AND(SIMULADOR!H9="CALAMANDA (LOCAL)",SIMULADOR!F13="A"),24,IF(AND(SIMULADOR!H9="CALAMANDA (LOCAL)",SIMULADOR!F13="B"),36,IF(SIMULADOR!H9="SUR_57",36,""))))))))))))) -> 36
B38: FECHA DE ENTREGA | E38: =VLOOKUP(E36,Table_1[#All],2) -> 2028-02-05 | K38: SIN/IVA | M38: C/IVA
B40: FECHA DE 1RA MENSUALIDAD | E40: =SIMULADOR!F50 -> 2025-03-05 | G40: =SIMULADOR!J27 -> 1 | J40: =SIMULADOR!K27 -> 36 | K40: =SIMULADOR!L27 -> 29325.7055 | M40: =SIMULADOR!N27 -> 33079.3958
B42: PLUSVALÍA CONTRATO | E42: =IF($D$20="AEROPUERTO (Lote)","",IF($D$20="AEROPUERTO (Nave)","",IF($D$20="PEDRO ESCOBEDO (Nave)","",IF($D$20="PEDRO ESCOBEDO (Lote)","",IF($D$20="SAN LUIS POTOSI (Nave)",20%,IF($D$20="GAMMA II ETAPA 1","",IF($D$20="GAMMA II ETAPA 2","",IF($D$20="CELTA","",IF($D$20="STA ROSA (Nave)","",""))))))))) ->  | G42: =SIMULADOR!J28 -> 37 | J42: =SIMULADOR!K28 -> 120 | K42: =SIMULADOR!L28 -> 60785.3895 | M42: =SIMULADOR!N28 -> 68565.91936
B44: FECHA DE APARTADO | E44: 2025-01-15 | F44: 2023-03-05
B45: PROMOCIÓN:
B46: =SIMULADOR!E46 -> EL GRAN FIN: VIGENCIA 30 DE NOVIEMNRE 2024
B48: ACUERDOS ADICIONALES | R48: NO
E89: VO. BO. AUTORIZA

Sheet SIMULADOR
L5: ACTUALIZACIÓN 08-01-2025
K7: FECHA DE COTIZACIÓN
G8: CLIENTE: | L8: REFERENCIA: | M8: =F14&H9&F13 -> 15SUR_57B
G9: PARQUE: | H9: SUR_57 | J9: =IF(H9="AEROPUERTO (NAVE)","AEROPUERTO",IF(H9="AEROPUERTO (LOTE)","AEROPUERTO",IF(H9="CELTA","CELTA",IF(H9="GAMMA II ETAPA 2","GAMMA_II",IF(H9="CALAMANDA (NAVE)","CALAMANDA",IF(H9="CALAMANDA (LOCAL)","CALAMANDA",IF(H9="SUR_57","SUR_57.",""))))))) -> SUR_57.
L10: =IF($E$14="LOTE",0%,IF($E$14="NAVE",12.8%,IF($E$14="LOCAL",12.8%,""))) -> 0.128
J12: IMPORTES: | K12: SUBTOTAL | L12: IVA | M12: IMPORTE TOTAL | N12: DESCUENTO
E13: Módulo: | F13: B | K13: =IF(Q17>"0",K18-K19,"") -> 
E14: =IF($H$9="AEROPUERTO (Lote)","LOTE",IF($H$9="AEROPUERTO (Nave)","NAVE",IF($H$9="PEDRO ESCOBEDO (Nave)","NAVE",IF($H$9="PEDRO ESCOBEDO (Lote)","LOTE",IF($H$9="SAN LUIS POTOSI (Nave)","NAVE",IF($H$9="SAN LUIS POTOSI (Lote)","LOTE",IF($H$9="GAMMA II ETAPA 1","NAVE",IF($H$9="GAMMA II ETAPA 2","NAVE",IF($H$9="CELTA","LOTE",IF($H$9="STA ROSA (Nave)","NAVE",IF($H$9="CALAMANDA (NAVE)","NAVE",IF($H$9="CALAMANDA (LOCAL)","LOCAL",IF($H$9="SUR_57","NAVE",""))))))))))))) -> NAVE | F14: 15 | J14: Precio de Lista: | K14: =F15*F17 -> 5914428 | L14: =IF(OR($L$10=0%,$L$10=""),"",K14*($L$10)) -> 757046.784 | M14: =SUM(K14:L14) -> 6671474.784
E15: M2 | F15: 400 | J15: Descuento: | K15: =IF(AND(H9="CALAMANDA (LOCAL)",F13="A"),80000,IF(AND(H9="CALAMANDA (LOCAL)",F13="B"),70000,(K14*N15))) -> 887164.2 | L15: =IF(OR($L$10=0%,$L$10=""),"",K15*($L$10)) -> 113557.0176 | M15: =SUM(K15:L15) -> 1000721.218 | N15: 0.15
E16: TIPO: | F16: ESTANDAR | L16: 0 | Q16: =$N$18 -> 0.3
E17: P.u Lista: | F17: 14786.07 | J17: Importe de Operación: | K17: =K14-K15-K16 -> 5027263.8 | L17: 643489.7664 | M17: 5670753.566 | O17: 680095.28
E18: P.u Descuento: | F18: =F17-(F17*N15) -> 12568.1595 | J18: Enganche: | K18: =$K$17*$N$18 -> 1508179.14 | L18: 193046.9299 | M18: 1701226.07 | N18: =IF($H$9="AEROPUERTO (Lote)",10%,IF($H$9="AEROPUERTO (Nave)",30%,IF($H$9="PEDRO ESCOBEDO (Nave)",30%,IF($H$9="PEDRO ESCOBEDO (Lote)",30%,IF($H$9="GAMMA II ETAPA 1",30%,IF($H$9="GAMMA II ETAPA 2",20%,IF($H$9="CELTA",30%,IF($H$9="STA ROSA (NAve)",50%,IF($H$9="CALAMANDA (NAve)",30%,IF($H$9="CALAMANDA (LOCAL)",30%,IF(AND(SIMULADOR!H9="SUR_57",G20="FINANCIAMIENTO 1"),10%,IF(AND(SIMULADOR!H9="SUR_57",G20="FINANCIAMIENTO 2"),30%,IF(AND(SIMULADOR!H9="SUR_57",G20="FINANCIAMIENTO 3"),30%,""))))))))))))) -> 0.3 | O18: =O17/K14 -> 0.1149891891
J19: Descuento en el Enganche: | K19: =IF($H$9="AEROPUERTO (Lote)",K18*0.1*N19,IF($H$9="AEROPUERTO (Nave)",K17*0.1*N19,IF($H$9="PEDRO ESCOBEDO (Nave)",K17*0*N19,IF($H$9="PEDRO ESCOBEDO (Lote)",K17*0*N19,IF($H$9="GAMMA II ETAPA 1",K17*0*N19,IF($H$9="GAMMA II ETAPA 2",K17*0*N19,IF($H$9="CELTA",K17*0.1*N19,IF($H$9="CALAMANDA (NAVE)",K17*0.1*N19,IF($H$9="CALAMANDA (LOCAL)",K17*0*N19,IF(AND(SIMULADOR!H9="SUR_57",G20="FINANCIAMIENTO 1"),K17*0*N19,IF(AND(SIMULADOR!H9="SUR_57",G20="FINANCIAMIENTO 2"),K17*0*N19,IF(AND(SIMULADOR!H9="SUR_57",G20="FINANCIAMIENTO 3"),K17*0*N19,"")))))))))))) -> 0 | L19: 0 | M19: 0
E20: FINANCIAMIENTO: | G20: FINANCIAMIENTO 3 | J20: Enganche extra | K20: =IF(Q17>K18,Q17-(K18-K19),"0") -> 0 | L20: 0 | M20: 0
J21: ENGANCHE A PAGAR: | K21: =K18-K19+K20 -> 1508179.14 | L21: 193046.9299 | M21: 1701226.07 | N21: =K21/K17 -> 0.3
G22: =H22/12 -> 10 | H22: =IF($H$9="AEROPUERTO (Lote)",36,IF($H$9="AEROPUERTO (Nave)",36,IF($H$9="PEDRO ESCOBEDO (Nave)",60,IF($H$9="PEDRO ESCOBEDO (Lote)",60,IF($H$9="GAMMA II ETAPA 1",18,IF($H$9="GAMMA II ETAPA 2",6,IF($H$9="CELTA",60,IF($H$9="STA ROSA (Nave)",10,IF($H$9="CALAMANDA (NAVE)",60,IF(AND(SIMULADOR!H9="CALAMANDA (LOCAL)",SIMULADOR!F13="B"),36,IF(AND(SIMULADOR!H9="CALAMANDA (LOCAL)",SIMULADOR!F13="A"),24,IF(AND(SIMULADOR!H9="SUR_57",G20="FINANCIAMIENTO 1"),36,IF(AND(SIMULADOR!H9="SUR_57",G20="FINANCIAMIENTO 2"),60,IF(AND(SIMULADOR!H9="SUR_57",G20="FINANCIAMIENTO 3"),120,"")))))))))))))) -> 120 | J22: TOTAL A PAGAR: | K22: =SUM(K21+K23) -> 5027263.8 | L22: 643489.7664 | M22: 5670753.566
E23: 1 | F23: =G23 -> 36 | G23: =IF($H$9="AEROPUERTO (NAVE)",18,IF($H$9="AEROPUERTO (Lote)",18,IF($H$9="PEDRO ESCOBEDO (Nave)",24,IF($H$9="PEDRO ESCOBEDO (Lote)",24,IF($H$9="GAMMA II ETAPA 1",6,IF($H$9="GAMMA II ETAPA 2",6,IF($H$9="CELTA",36,IF($H$9="STA ROSA (Nave)",4,IF(AND(SIMULADOR!H9="CALAMANDA (NAVE)",G20="FINANCIAMIENTO 1"),36,IF(AND(SIMULADOR!H9="CALAMANDA (NAVE)",G20="FINANCIAMIENTO 2"),24,IF(AND(SIMULADOR!H9="CALAMANDA (LOCAL)",SIMULADOR!F13="B"),36,IF(AND(SIMULADOR!H9="CALAMANDA (LOCAL)",SIMULADOR!F13="A"),24,IF(SIMULADOR!H9="SUR_57",36,""))))))))))))) -> 36 | H23: 0 | J23: IMPORTE A FINANCIAR: | K23: =K17-$K$18-K20 -> 3519084.66 | L23: 450442.8365 | M23: 3969527.496
E24: =F23+1 -> 37 | F24: =H22 -> 120 | G24: =IF($H$9="AEROPUERTO (lote)",18,IF($H$9="AEROPUERTO (Nave)",18,IF($H$9="PEDRO ESCOBEDO (Nave)",36,IF($H$9="PEDRO ESCOBEDO (Lote)",36,IF($H$9="GAMMA II ETAPA 1",12,IF($H$9="GAMMA II ETAPA 2",0,IF($H$9="CELTA",24,IF($H$9="STA ROSA (Nave)",6,IF(AND(SIMULADOR!H9="CALAMANDA (NAVE)",G20="FINANCIAMIENTO 1"),24,IF(AND(SIMULADOR!H9="CALAMANDA (NAVE)",G20="FINANCIAMIENTO 2"),36,IF($H$9="CALAMANDA (LOCAL)","",IF(AND(SIMULADOR!H9="SUR_57",G20="FINANCIAMIENTO 1"),"",IF(AND(SIMULADOR!H9="SUR_57",G20="FINANCIAMIENTO 2"),24,IF(AND(SIMULADOR!H9="SUR_57",G20="FINANCIAMIENTO 3"),84,"")))))))))))))) -> 84 | H24: =IF($E$14="LOTE",2%,IF($E$14="NAVE",2%,"")) -> 0.02
J25: MENSUALIDADES: | L25: SUBTOTAL | M25: IVA | N25: IMPORTE TOTAL
J27: =E23 -> 1 | K27: =G23 -> 36 | L27: =IF($L$10=12.8%,(N27/1.128),IF($M$27="",_xludf.AGGREGATE(9,6,M27:N27))) -> 29325.7055 | M27: =IF($L$10=12.8%,N27-(N27/1.128),"") -> 3753.690304 | N27: =IFERROR(-PMT(H23,$H$22,O27),0) -> 33079.3958 | O27: =M23 -> 3969527.496
J28: =E24 -> 37 | K28: =H22 -> 120 | L28: =IF($L$10=12.8%,(N28/1.128),IF($M$27="",_xludf.AGGREGATE(9,6,M28:N28))) -> 60785.3895 | M28: =IF($L$10=12.8%,N28-(N28/1.128),"") -> 7780.529856 | N28: =IFERROR(-PMT(H24,$H$22-G23,O28),0) -> 68565.91936 | O28: =IF(H23=0,O27-(G23*N27),O27-(-CUMPRINC(H23,H22,O27,1,G23,0))) -> 2778669.248
E30: Documentación Requerida: | G30: Moral: | J30: =IF(J37="ENGANCHE DIFERIDO:","MENSUALIDAD + ENGANCHE","") -> MENSUALIDAD + ENGANCHE | L30: =IF(J37="ENGANCHE DIFERIDO:","SUBTOTAL","") -> SUBTOTAL | M30: =IF(J37="ENGANCHE DIFERIDO:","IVA","") -> IVA | N30: =IF(J37="ENGANCHE DIFERIDO:","IMPORTE TOTAL","") -> IMPORTE TOTAL
E31: Física. | G31: *Identificación oficial del representante legal vigente.
E32: *Identificación oficial vigente. | G32: *Acta de nacimiento del representante legal. | K32: =IF(AND($K$37="NAVE-CDA 10%,10% 10%",J37="ENGANCHE DIFERIDO:"),12,IF(AND($K$37="GMA II 20%,15%,15%",J37="ENGANCHE DIFERIDO:"),2,IF(AND($K$37="NAVE-CALAMANDA 15%,10%,5%",J37="ENGANCHE DIFERIDO:"),12,IF(AND($K$37="LOTE-AE,CELTA, 10%,10%,10%",J37="ENGANCHE DIFERIDO:"),12,IF(AND($K$37="LOCAL B CDA 10%, 10%, 10%",J37="ENGANCHE DIFERIDO:"),12,IF(AND($K$37="LOCAL A CDA 10%, 10%, 10%",J37="ENGANCHE DIFERIDO:"),12,IF(AND($K$37="NAVE-AE 10%,10% 10%",J37="ENGANCHE DIFERIDO:"),6,""))))))) -> 12 | L32: =IF($L$10=12.8%,(N32/1.128),IF($M$27="",_xludf.AGGREGATE(9,6,M32:N32))) -> 532052.0855 | M32: =IF($L$10=12.8%,N32-(N32/1.128),"") -> 68102.66694 | N32: =VLOOKUP(K32,SIMULADOR!$E$49:$M$172,4,0)+N40 -> 600154.7524
E33: *Acta de nacimiento. | G33: *Acta constitutiva
E34: *Acta de matrimonio ( en caso de ser casado). | G34: *Constancia de situacón fiscal empre y representante legal | K34: =IF(AND($K$37="NAVE-CDA 10%,10% 10%",J37="ENGANCHE DIFERIDO:"),24,IF(AND($K$37="GMA II 20%,15%,15%",J37="ENGANCHE DIFERIDO:"),3,IF(AND($K$37="GMA II 10%,10%,10%",J37="ENGANCHE DIFERIDO:"),3,IF(AND($K$37="NAVE-CALAMANDA 15%,10%,5%",J37="ENGANCHE DIFERIDO:"),24,IF(AND($K$37="LOTE-AE,CELTA, 10%,10%,10%",J37="ENGANCHE DIFERIDO:"),24,IF(AND($K$37="LOCAL A CDA 10%, 10%, 10%",J37="ENGANCHE DIFERIDO:"),20,IF(AND($K$37="LOCAL B CDA 10%, 10%, 10%",J37="ENGANCHE DIFERIDO:"),24,IF(AND($K$37="NAVE-AE 10%,10% 10%",J37="ENGANCHE DIFERIDO:"),12,"")))))))) -> 24 | L34: =IF($L$10=12.8%,(N34/1.128),IF($M$27="",_xludf.AGGREGATE(9,6,M34:N34))) -> 532052.0855 | M34: 68102.66694 | N34: =VLOOKUP(K34,SIMULADOR!$E$49:$M$172,4,0)+N41 -> 600154.7524
E35: *Constancia de situación fiscal | G35: *CURP del representante legal
E36: *CURP . | G36: *Comprobante de Domicilio (Empresa y Representante legal).
E37: *Comprobante de domicilio | G37: *Poder en el que ostenta las facultades otorgadas al representante legal | J37: ENGANCHE DIFERIDO: | K37: =IF(J37="N/A","",IF(AND(H9=DATOS!D20,F13="A"),DATOS!D33,IF(AND(H9=DATOS!D20,F13="B"),DATOS!D34,IF(H9=DATOS!D15,DATOS!D32,IF(H9=DATOS!D16,DATOS!D35,IF(H9=DATOS!D17,DATOS!D32,IF(H9=DATOS!D18,DATOS!D35,IF(H9=DATOS!D23,DATOS!D31,IF(H9=DATOS!D22,DATOS!D32,IF(H9=DATOS!D19,DATOS!D31,IF(AND(H9=DATOS!D21,SIMULADOR!G20="FINANCIAMIENTO 2"),DATOS!D31,IF(AND(H9=DATOS!D21,SIMULADOR!G20="FINANCIAMIENTO 3"),DATOS!D31,"")))))))))))) -> NAVE-CDA 10%,10% 10% | L37: =IF(J37="ENGANCHE DIFERIDO:","SUBTOTAL","") -> SUBTOTAL | M37: =IF(J37="ENGANCHE DIFERIDO:","IVA","") -> IVA | N37: =IF(J37="ENGANCHE DIFERIDO:","IMPORTE TOTAL","") -> IMPORTE TOTAL
E39: * En caso de estar CASADOS por sociedad conyugal o COOPROPIEDAD, anexar toda la documentacion mencionada de ambas partes. | J39: =IF(AND($K$37="NAVE-CDA 10%,10% 10%",J37="ENGANCHE DIFERIDO:"),10%,IF(AND($K$37="LOTE-AE,CELTA, 10%,10%,10%",J37="ENGANCHE DIFERIDO:"),10%,IF(AND($K$37="NAVE-AE,SLP 20%,5%,5%",J37="ENGANCHE DIFERIDO:"),20%,IF(AND($K$37="GMA II 20%,15%,15%",J37="ENGANCHE DIFERIDO:"),20%,IF(AND($K$37="NAVE-CALAMANDA 15%,10%,5%",J37="ENGANCHE DIFERIDO:"),15%,IF(AND($K$37="LOCAL A CDA 10%, 10%, 10%",J37="ENGANCHE DIFERIDO:"),10%,IF(AND($K$37="LOCAL B CDA 10%, 10%, 10%",J37="ENGANCHE DIFERIDO:"),10%,IF(AND($K$37="NAVE-AE 10%,10% 10%",J37="ENGANCHE DIFERIDO:"),10%,"")))))))) -> 0.1 | K39: =IF(J37="ENGANCHE DIFERIDO:","PAGO INMEDIATO","") -> PAGO INMEDIATO | L39: =(K17*J39)-K19 -> 502726.38 | M39: =IF(OR($L$10=0%,$L$10=""),"",L39*($L$10)) -> 64348.97664 | N39: =SUM(L39:M39) -> 567075.3566
J40: =IF(AND($K$37="NAVE-CDA 10%,10% 10%",J37="ENGANCHE DIFERIDO:"),10%,IF(AND($K$37="LOTE-AE,CELTA, 10%,10%,10%",J37="ENGANCHE DIFERIDO:"),10%,IF(AND($K$37="GMA II 20%,15%,15%",J37="ENGANCHE DIFERIDO:"),15%,IF(AND($K$37="NAVE-CALAMANDA 15%,10%,5%",J37="ENGANCHE DIFERIDO:"),10%,IF(AND($K$37="LOCAL A CDA 10%, 10%, 10%",J37="ENGANCHE DIFERIDO:"),10%,IF(AND($K$37="LOCAL B CDA 10%, 10%, 10%",J37="ENGANCHE DIFERIDO:"),10%,IF(AND($K$37="NAVE-AE 10%,10% 10%",J37="ENGANCHE DIFERIDO:"),10%,""))))))) -> 0.1 | K40: =IF(AND($K$37="NAVE-CDA 10%,10% 10%",J37="ENGANCHE DIFERIDO:"),12,IF(AND($K$37="LOTE-AE,CELTA, 10%,10%,10%",J37="ENGANCHE DIFERIDO:"),12,IF(AND($K$37="GMA II 20%,15%,15%",J37="ENGANCHE DIFERIDO:"),2,IF(AND($K$37="NAVE-CALAMANDA 15%,10%,5%",J37="ENGANCHE DIFERIDO:"),12,IF(AND($K$37="LOCAL A CDA 10%, 10%, 10%",J37="ENGANCHE DIFERIDO:"),12,IF(AND($K$37="LOCAL B CDA 10%, 10%, 10%",J37="ENGANCHE DIFERIDO:"),12,IF(AND($K$37="NAVE-AE 10%,10% 10%",J37="ENGANCHE DIFERIDO:"),6,""))))))) -> 12 | L40: =K17*J40 -> 502726.38 | M40: =IF(OR($L$10=0%,$L$10=""),"",L40*($L$10)) -> 64348.97664 | N40: 567075.3566
J41: =IF(AND($K$37="NAVE-CDA 10%,10% 10%",J37="ENGANCHE DIFERIDO:"),10%,IF(AND($K$37="LOTE-AE,CELTA, 10%,10%,10%",J37="ENGANCHE DIFERIDO:"),10%,IF(AND($K$37="GMA II 20%,15%,15%",J37="ENGANCHE DIFERIDO:"),15%,IF(AND($K$37="NAVE-CALAMANDA 15%,10%,5%",J37="ENGANCHE DIFERIDO:"),5%,IF(AND($K$37="LOCAL A CDA 10%, 10%, 10%",J37="ENGANCHE DIFERIDO:"),10%,IF(AND($K$37="LOCAL B CDA 10%, 10%, 10%",J37="ENGANCHE DIFERIDO:"),10%,IF(AND($K$37="NAVE-AE 10%,10% 10%",J37="ENGANCHE DIFERIDO:"),10%,""))))))) -> 0.1 | K41: =IF(AND($K$37="NAVE-CDA 10%,10% 10%",J37="ENGANCHE DIFERIDO:"),24,IF(AND($K$37="LOTE-AE,CELTA, 10%,10%,10%",J37="ENGANCHE DIFERIDO:"),20,IF(AND($K$37="GMA II 20%,15%,15%",J37="ENGANCHE DIFERIDO:"),3,IF(AND($K$37="NAVE-CALAMANDA 15%,10%,5%",J37="ENGANCHE DIFERIDO:"),24,IF(AND($K$37="LOCAL A CDA 10%, 10%, 10%",J37="ENGANCHE DIFERIDO:"),20,IF(AND($K$37="LOCAL B CDA 10%, 10%, 10%",J37="ENGANCHE DIFERIDO:"),24,IF(AND($K$37="NAVE-AE 10%,10% 10%",J37="ENGANCHE DIFERIDO:"),12,""))))))) -> 24 | L41: =K17*J41 -> 502726.38 | M41: =IF(OR($L$10=0%,$L$10=""),"",L41*($L$10)) -> 64348.97664 | N41: 567075.3566
E45: PROMOCION
E46: EL GRAN FIN: VIGENCIA 30 DE NOVIEMNRE 2024
E47: Precios Sujetos a cambio sin sin previo aviso.
E48: DESGLOSE DE FINANCIAMIENTO A MESES SIN INTERESES
E49: PERIODO | F49: FECHA | G49: SALDO INICIAL | H49: MENSUALIDAD | I49: ABONOS | J49: PAGADO | K49: INTERÉS | L49: ABONO A CAPITAL | M49: SALDO FINAL | N49: %INTERES
E50: 1 | F50: =IF(DAY('RESUMEN EJECUTIVO'!E44)>5,DATE(YEAR('RESUMEN EJECUTIVO'!E35),MONTH(EDATE('RESUMEN EJECUTIVO'!E44,2)),5),EDATE('RESUMEN EJECUTIVO'!E44,1)) -> 2025-03-05 | G50: =$O$27 -> 3969527.496 | H50: =IF($G50>IF($E50<=$G$23,$N$27,IF($E50<=$G$24+$G$23,$N$28,"")),IF($E50<=$G$23,$N$27,IF($E50<=$G$24+$G$23,$N$28,"")),$G50+$K50) -> 33079.3958 | J50: =SUM(H50:I50) -> 33079.3958 | K50: =G50*N50 -> 0 | L50: =J50-K50 -> 33079.3958 | M50: =G50-L50 -> 3936448.101 | N50: =IF($E50<=$G$23,$H$23,IF($E50<=$G$24+$G$23,$H$24,"")) -> 0
E51: =IF(E50<$H$22,E50+1,IF(Table_1[[#This Row],[SALDO INICIAL]]<=0,"")) -> 2 | F51: =EDATE($F$50,E50) -> 2025-04-05 | G51: =M50 -> 3936448.101 | H51: =IF($G51>IF($E51<=$G$23,$N$27,IF($E51<=$G$24+$G$23,$N$28,"")),IF($E51<=$G$23,$N$27,IF($E51<=$G$24+$G$23,$N$28,"")),$G51+$K51) -> 33079.3958 | J51: =SUM(H51:I51) -> 33079.3958 | K51: =G51*N51 -> 0 | L51: =J51-K51 -> 33079.3958 | M51: =G51-L51 -> 3903368.705 | N51: =IF($E51<=$G$23,$H$23,IF($E51<=$G$24+$G$23,$H$24,"")) -> 0
E52: =IF(E51<$H$22,E51+1,IF(Table_1[[#This Row],[SALDO INICIAL]]<=0,"")) -> 3 | F52: =EDATE($F$50,E51) -> 2025-05-05 | G52: =M51 -> 3903368.705 | H52: 33079.3958 | J52: 33079.3958 | K52: 0 | L52: 33079.3958 | M52: 3870289.309 | N52: 0
E53: =IF(E52<$H$22,E52+1,IF(Table_1[[#This Row],[SALDO INICIAL]]<=0,"")) -> 4 | F53: 2025-06-05 | G53: 3870289.309 | H53: 33079.3958 | J53: 33079.3958 | K53: 0 | L53: 33079.3958 | M53: 3837209.913 | N53: 0
E54: =IF(E53<$H$22,E53+1,IF(Table_1[[#This Row],[SALDO INICIAL]]<=0,"")) -> 5 | F54: 2025-07-05 | G54: 3837209.913 | H54: 33079.3958 | J54: 33079.3958 | K54: 0 | L54: 33079.3958 | M54: 3804130.517 | N54: 0
E55: =IF(E54<$H$22,E54+1,IF(Table_1[[#This Row],[SALDO INICIAL]]<=0,"")) -> 6 | F55: 2025-08-05 | G55: 3804130.517 | H55: 33079.3958 | J55: 33079.3958 | K55: 0 | L55: 33079.3958 | M55: 3771051.122 | N55: 0
E56: =IF(E55<$H$22,E55+1,IF(Table_1[[#This Row],[SALDO INICIAL]]<=0,"")) -> 7 | F56: 2025-09-05 | G56: 3771051.122 | H56: 33079.3958 | J56: 33079.3958 | K56: 0 | L56: 33079.3958 | M56: 3737971.726 | N56: 0
E57: =IF(E56<$H$22,E56+1,IF(Table_1[[#This Row],[SALDO INICIAL]]<=0,"")) -> 8 | F57: 2025-10-05 | G57: 3737971.726 | H57: 33079.3958 | J57: 33079.3958 | K57: 0 | L57: 33079.3958 | M57: 3704892.33 | N57: 0
E58: =IF(E57<$H$22,E57+1,IF(Table_1[[#This Row],[SALDO INICIAL]]<=0,"")) -> 9 | F58: 2025-11-05 | G58: 3704892.33 | H58: 33079.3958 | J58: 33079.3958 | K58: 0 | L58: 33079.3958 | M58: 3671812.934 | N58: 0
E59: =IF(E58<$H$22,E58+1,IF(Table_1[[#This Row],[SALDO INICIAL]]<=0,"")) -> 10 | F59: 2025-12-05 | G59: 3671812.934 | H59: 33079.3958 | J59: 33079.3958 | K59: 0 | L59: 33079.3958 | M59: 3638733.538 | N59: 0
E60: =IF(E59<$H$22,E59+1,IF(Table_1[[#This Row],[SALDO INICIAL]]<=0,"")) -> 11 | F60: 2026-01-05 | G60: 3638733.538 | H60: 33079.3958 | J60: 33079.3958 | K60: 0 | L60: 33079.3958 | M60: 3605654.143 | N60: 0
E61: =IF(E60<$H$22,E60+1,IF(Table_1[[#This Row],[SALDO INICIAL]]<=0,"")) -> 12 | F61: 2026-02-05 | G61: 3605654.143 | H61: 33079.3958 | J61: 33079.3958 | K61: 0 | L61: 33079.3958 | M61: 3572574.747 | N61: 0
E62: =IF(E61<$H$22,E61+1,IF(Table_1[[#This Row],[SALDO INICIAL]]<=0,"")) -> 13 | F62: 2026-03-05 | G62: 3572574.747 | H62: 33079.3958 | J62: 33079.3958 | K62: 0 | L62: 33079.3958 | M62: 3539495.351 | N62: 0
E63: =IF(E62<$H$22,E62+1,IF(Table_1[[#This Row],[SALDO INICIAL]]<=0,"")) -> 14 | F63: 2026-04-05 | G63: 3539495.351 | H63: 33079.3958 | J63: 33079.3958 | K63: 0 | L63: 33079.3958 | M63: 3506415.955 | N63: 0
E64: =IF(E63<$H$22,E63+1,IF(Table_1[[#This Row],[SALDO INICIAL]]<=0,"")) -> 15 | F64: 2026-05-05 | G64: 3506415.955 | H64: 33079.3958 | J64: 33079.3958 | K64: 0 | L64: 33079.3958 | M64: 3473336.559 | N64: 0
E65: =IF(E64<$H$22,E64+1,IF(Table_1[[#This Row],[SALDO INICIAL]]<=0,"")) -> 16 | F65: 2026-06-05 | G65: 3473336.559 | H65: 33079.3958 | J65: 33079.3958 | K65: =G65*N65 -> 0 | L65: 33079.3958 | M65: 3440257.164 | N65: 0
E66: =IF(E65<$H$22,E65+1,IF(Table_1[[#This Row],[SALDO INICIAL]]<=0,"")) -> 17 | F66: 2026-07-05 | G66: 3440257.164 | H66: 33079.3958 | J66: 33079.3958 | K66: 0 | L66: 33079.3958 | M66: 3407177.768 | N66: 0
E67: =IF(E66<$H$22,E66+1,IF(Table_1[[#This Row],[SALDO INICIAL]]<=0,"")) -> 18 | F67: 2026-08-05 | G67: 3407177.768 | H67: 33079.3958 | J67: 33079.3958 | K67: 0 | L67: 33079.3958 | M67: 3374098.372 | N67: 0
E68: =IF(E67<$H$22,E67+1,IF(Table_1[[#This Row],[SALDO INICIAL]]<=0,"")) -> 19 | F68: 2026-09-05 | G68: 3374098.372 | H68: 33079.3958 | J68: 33079.3958 | K68: 0 | L68: 33079.3958 | M68: 3341018.976 | N68: 0
E69: =IF(E68<$H$22,E68+1,IF(Table_1[[#This Row],[SALDO INICIAL]]<=0,"")) -> 20 | F69: 2026-10-05 | G69: 3341018.976 | H69: 33079.3958 | J69: 33079.3958 | K69: 0 | L69: 33079.3958 | M69: 3307939.58 | N69: 0
E70: =IF(E69<$H$22,E69+1,IF(Table_1[[#This Row],[SALDO INICIAL]]<=0,"")) -> 21 | F70: 2026-11-05 | G70: 3307939.58 | H70: 33079.3958 | J70: 33079.3958 | K70: 0 | L70: 33079.3958 | M70: 3274860.185 | N70: 0
E71: =IF(E70<$H$22,E70+1,IF(Table_1[[#This Row],[SALDO INICIAL]]<=0,"")) -> 22 | F71: 2026-12-05 | G71: 3274860.185 | H71: 33079.3958 | J71: 33079.3958 | K71: 0 | L71: 33079.3958 | M71: 3241780.789 | N71: 0
E72: =IF(E71<$H$22,E71+1,IF(Table_1[[#This Row],[SALDO INICIAL]]<=0,"")) -> 23 | F72: 2027-01-05 | G72: 3241780.789 | H72: 33079.3958 | J72: 33079.3958 | K72: 0 | L72: 33079.3958 | M72: 3208701.393 | N72: 0
E73: =IF(E72<$H$22,E72+1,IF(Table_1[[#This Row],[SALDO INICIAL]]<=0,"")) -> 24 | F73: 2027-02-05 | G73: 3208701.393 | H73: 33079.3958 | J73: 33079.3958 | K73: =G73*N73 -> 0 | L73: 33079.3958 | M73: 3175621.997 | N73: 0
E74: =IF(E73<$H$22,E73+1,IF(Table_1[[#This Row],[SALDO INICIAL]]<=0,"")) -> 25 | F74: 2027-03-05 | G74: 3175621.997 | H74: 33079.3958 | J74: 33079.3958 | K74: 0 | L74: 33079.3958 | M74: 3142542.601 | N74: 0
E75: =IF(E74<$H$22,E74+1,IF(Table_1[[#This Row],[SALDO INICIAL]]<=0,"")) -> 26 | F75: 2027-04-05 | G75: 3142542.601 | H75: 33079.3958 | J75: 33079.3958 | K75: 0 | L75: 33079.3958 | M75: 3109463.206 | N75: 0
E76: =IF(E75<$H$22,E75+1,IF(Table_1[[#This Row],[SALDO INICIAL]]<=0,"")) -> 27 | F76: 2027-05-05 | G76: 3109463.206 | H76: 33079.3958 | J76: 33079.3958 | K76: 0 | L76: 33079.3958 | M76: 3076383.81 | N76: 0
E77: =IF(E76<$H$22,E76+1,IF(Table_1[[#This Row],[SALDO INICIAL]]<=0,"")) -> 28 | F77: 2027-06-05 | G77: 3076383.81 | H77: 33079.3958 | J77: 33079.3958 | K77: 0 | L77: 33079.3958 | M77: 3043304.414 | N77: 0
E78: =IF(E77<$H$22,E77+1,IF(Table_1[[#This Row],[SALDO INICIAL]]<=0,"")) -> 29 | F78: 2027-07-05 | G78: 3043304.414 | H78: 33079.3958 | J78: 33079.3958 | K78: 0 | L78: 33079.3958 | M78: 3010225.018 | N78: 0
E79: =IF(E78<$H$22,E78+1,IF(Table_1[[#This Row],[SALDO INICIAL]]<=0,"")) -> 30 | F79: 2027-08-05 | G79: 3010225.018 | H79: 33079.3958 | J79: 33079.3958 | K79: 0 | L79: 33079.3958 | M79: 2977145.622 | N79: 0
E80: =IF(E79<$H$22,E79+1,IF(Table_1[[#This Row],[SALDO INICIAL]]<=0,"")) -> 31 | F80: 2027-09-05 | G80: 2977145.622 | H80: 33079.3958 | J80: 33079.3958 | K80: 0 | L80: 33079.3958 | M80: 2944066.227 | N80: 0
E81: =IF(E80<$H$22,E80+1,IF(Table_1[[#This Row],[SALDO INICIAL]]<=0,"")) -> 32 | F81: 2027-10-05 | G81: 2944066.227 | H81: 33079.3958 | J81: 33079.3958 | K81: 0 | L81: 33079.3958 | M81: 2910986.831 | N81: 0
E82: =IF(E81<$H$22,E81+1,IF(Table_1[[#This Row],[SALDO INICIAL]]<=0,"")) -> 33 | F82: 2027-11-05 | G82: 2910986.831 | H82: 33079.3958 | J82: 33079.3958 | K82: 0 | L82: 33079.3958 | M82: 2877907.435 | N82: 0
E83: =IF(E82<$H$22,E82+1,IF(Table_1[[#This Row],[SALDO INICIAL]]<=0,"")) -> 34 | F83: 2027-12-05 | G83: 2877907.435 | H83: 33079.3958 | J83: 33079.3958 | K83: 0 | L83: 33079.3958 | M83: 2844828.039 | N83: 0
E84: =IF(E83<$H$22,E83+1,IF(Table_1[[#This Row],[SALDO INICIAL]]<=0,"")) -> 35 | F84: 2028-01-05 | G84: 2844828.039 | H84: 33079.3958 | J84: 33079.3958 | K84: 0 | L84: 33079.3958 | M84: 2811748.643 | N84: 0
E85: =IF(E84<$H$22,E84+1,IF(Table_1[[#This Row],[SALDO INICIAL]]<=0,"")) -> 36 | F85: 2028-02-05 | G85: 2811748.643 | H85: 33079.3958 | J85: 33079.3958 | K85: 0 | L85: 33079.3958 | M85: 2778669.248 | N85: 0
E86: =IF(E85<$H$22,E85+1,IF(Table_1[[#This Row],[SALDO INICIAL]]<=0,"")) -> 37 | F86: 2028-03-05 | G86: 2778669.248 | H86: 68565.91936 | J86: 68565.91936 | K86: 55573.38495 | L86: 12992.53441 | M86: 2765676.713 | N86: 0.02
E87: =IF(E86<$H$22,E86+1,IF(Table_1[[#This Row],[SALDO INICIAL]]<=0,"")) -> 38 | F87: 2028-04-05 | G87: 2765676.713 | H87: 68565.91936 | J87: 68565.91936 | K87: 55313.53426 | L87: 13252.38509 | M87: 2752424.328 | N87: 0.02
E88: =IF(E87<$H$22,E87+1,IF(Table_1[[#This Row],[SALDO INICIAL]]<=0,"")) -> 39 | F88: 2028-05-05 | G88: 2752424.328 | H88: 68565.91936 | J88: 68565.91936 | K88: =G88*N88 -> 55048.48656 | L88: 13517.4328 | M88: 2738906.895 | N88: 0.02
E89: =IF(E88<$H$22,E88+1,IF(Table_1[[#This Row],[SALDO INICIAL]]<=0,"")) -> 40 | F89: 2028-06-05 | G89: 2738906.895 | H89: 68565.91936 | J89: 68565.91936 | K89: =G89*N89 -> 54778.1379 | L89: 13787.78145 | M89: 2725119.114 | N89: 0.02
E90: =IF(E89<$H$22,E89+1,IF(Table_1[[#This Row],[SALDO INICIAL]]<=0,"")) -> 41 | F90: 2028-07-05 | G90: 2725119.114 | H90: 68565.91936 | J90: 68565.91936 | K90: =G90*N90 -> 54502.38228 | L90: 14063.53708 | M90: 2711055.577 | N90: 0.02
E91: =IF(E90<$H$22,E90+1,IF(Table_1[[#This Row],[SALDO INICIAL]]<=0,"")) -> 42 | F91: 2028-08-05 | G91: 2711055.577 | H91: 68565.91936 | J91: 68565.91936 | K91: 54221.11153 | L91: 14344.80782 | M91: 2696710.769 | N91: 0.02
E92: =IF(E91<$H$22,E91+1,IF(Table_1[[#This Row],[SALDO INICIAL]]<=0,"")) -> 43 | F92: 2028-09-05 | G92: 2696710.769 | H92: 68565.91936 | J92: 68565.91936 | K92: 53934.21538 | L92: 14631.70398 | M92: 2682079.065 | N92: 0.02
E93: =IF(E92<$H$22,E92+1,IF(Table_1[[#This Row],[SALDO INICIAL]]<=0,"")) -> 44 | F93: 2028-10-05 | G93: 2682079.065 | H93: 68565.91936 | J93: 68565.91936 | K93: 53641.5813 | L93: 14924.33806 | M93: 2667154.727 | N93: 0.02
E94: =IF(E93<$H$22,E93+1,IF(Table_1[[#This Row],[SALDO INICIAL]]<=0,"")) -> 45 | F94: 2028-11-05 | G94: 2667154.727 | H94: 68565.91936 | J94: 68565.91936 | K94: 53343.09454 | L94: 15222.82482 | M94: 2651931.902 | N94: 0.02
E95: =IF(E94<$H$22,E94+1,IF(Table_1[[#This Row],[SALDO INICIAL]]<=0,"")) -> 46 | F95: 2028-12-05 | G95: 2651931.902 | H95: 68565.91936 | J95: 68565.91936 | K95: 53038.63804 | L95: 15527.28132 | M95: 2636404.621 | N95: 0.02
E96: =IF(E95<$H$22,E95+1,IF(Table_1[[#This Row],[SALDO INICIAL]]<=0,"")) -> 47 | F96: 2029-01-05 | G96: 2636404.621 | H96: 68565.91936 | J96: 68565.91936 | K96: 52728.09241 | L96: 15837.82694 | M96: 2620566.794 | N96: 0.02
E97: =IF(E96<$H$22,E96+1,IF(Table_1[[#This Row],[SALDO INICIAL]]<=0,"")) -> 48 | F97: 2029-02-05 | G97: 2620566.794 | H97: 68565.91936 | J97: 68565.91936 | K97: 52411.33588 | L97: 16154.58348 | M97: 2604412.21 | N97: 0.02
E98: =IF(E97<$H$22,E97+1,IF(Table_1[[#This Row],[SALDO INICIAL]]<=0,"")) -> 49 | F98: 2029-03-05 | G98: 2604412.21 | H98: 68565.91936 | J98: 68565.91936 | K98: 52088.24421 | L98: 16477.67515 | M98: 2587934.535 | N98: 0.02
E99: =IF(E98<$H$22,E98+1,IF(Table_1[[#This Row],[SALDO INICIAL]]<=0,"")) -> 50 | F99: 2029-04-05 | G99: 2587934.535 | H99: 68565.91936 | J99: 68565.91936 | K99: 51758.6907 | L99: 16807.22865 | M99: 2571127.306 | N99: 0.02
E100: =IF(E99<$H$22,E99+1,IF(Table_1[[#This Row],[SALDO INICIAL]]<=0,"")) -> 51 | F100: 2029-05-05 | G100: 2571127.306 | H100: 68565.91936 | J100: 68565.91936 | K100: 51422.54613 | L100: 17143.37323 | M100: 2553983.933 | N100: 0.02
E101: =IF(E100<$H$22,E100+1,IF(Table_1[[#This Row],[SALDO INICIAL]]<=0,"")) -> 52 | F101: 2029-06-05 | G101: 2553983.933 | H101: 68565.91936 | J101: 68565.91936 | K101: =G101*N101 -> 51079.67867 | L101: 17486.24069 | M101: 2536497.693 | N101: 0.02
E102: =IF(E101<$H$22,E101+1,IF(Table_1[[#This Row],[SALDO INICIAL]]<=0,"")) -> 53 | F102: 2029-07-05 | G102: 2536497.693 | H102: 68565.91936 | J102: 68565.91936 | K102: =G102*N102 -> 50729.95385 | L102: 17835.96551 | M102: 2518661.727 | N102: 0.02
E103: =IF(E102<$H$22,E102+1,IF(Table_1[[#This Row],[SALDO INICIAL]]<=0,"")) -> 54 | F103: 2029-08-05 | G103: 2518661.727 | H103: 68565.91936 | J103: 68565.91936 | K103: 50373.23454 | L103: 18192.68482 | M103: 2500469.042 | N103: 0.02
E104: =IF(E103<$H$22,E103+1,IF(Table_1[[#This Row],[SALDO INICIAL]]<=0,"")) -> 55 | F104: 2029-09-05 | G104: 2500469.042 | H104: 68565.91936 | J104: 68565.91936 | K104: 50009.38084 | L104: 18556.53851 | M104: 2481912.504 | N104: 0.02
E105: =IF(E104<$H$22,E104+1,IF(Table_1[[#This Row],[SALDO INICIAL]]<=0,"")) -> 56 | F105: 2029-10-05 | G105: 2481912.504 | H105: 68565.91936 | J105: 68565.91936 | K105: 49638.25007 | L105: 18927.66928 | M105: 2462984.834 | N105: 0.02
E106: =IF(E105<$H$22,E105+1,IF(Table_1[[#This Row],[SALDO INICIAL]]<=0,"")) -> 57 | F106: 2029-11-05 | G106: 2462984.834 | H106: 68565.91936 | J106: 68565.91936 | K106: 49259.69669 | L106: 19306.22267 | M106: 2443678.612 | N106: 0.02
E107: =IF(E106<$H$22,E106+1,IF(Table_1[[#This Row],[SALDO INICIAL]]<=0,"")) -> 58 | F107: 2029-12-05 | G107: 2443678.612 | H107: 68565.91936 | J107: 68565.91936 | K107: 48873.57224 | L107: 19692.34712 | M107: 2423986.265 | N107: 0.02
E108: =IF(E107<$H$22,E107+1,IF(Table_1[[#This Row],[SALDO INICIAL]]<=0,"")) -> 59 | F108: 2030-01-05 | G108: 2423986.265 | H108: 68565.91936 | J108: 68565.91936 | K108: 48479.72529 | L108: 20086.19406 | M108: 2403900.071 | N108: 0.02
E109: =IF(E108<$H$22,E108+1,IF(Table_1[[#This Row],[SALDO INICIAL]]<=0,"")) -> 60 | F109: 2030-02-05 | G109: 2403900.071 | H109: 68565.91936 | J109: 68565.91936 | K109: 48078.00141 | L109: 20487.91794 | M109: 2383412.153 | N109: 0.02
E110: =IF(E109<$H$22,E109+1,IF(Table_1[[#This Row],[SALDO INICIAL]]<=0,"")) -> 61 | F110: =EDATE($F$50,E109) -> 2030-03-05 | G110: 2383412.153 | H110: 68565.91936 | J110: 68565.91936 | K110: 47668.24305 | L110: 20897.6763 | M110: 2362514.476 | N110: 0.02
E111: =IF(E110<$H$22,E110+1,IF(Table_1[[#This Row],[SALDO INICIAL]]<=0,"")) -> 62 | F111: 2030-04-05 | G111: 2362514.476 | H111: 68565.91936 | J111: 68565.91936 | K111: 47250.28953 | L111: 21315.62983 | M111: 2341198.847 | N111: 0.02
E112: =IF(E111<$H$22,E111+1,IF(Table_1[[#This Row],[SALDO INICIAL]]<=0,"")) -> 63 | F112: 2030-05-05 | G112: 2341198.847 | H112: 68565.91936 | J112: 68565.91936 | K112: 46823.97693 | L112: 21741.94243 | M112: 2319456.904 | N112: 0.02
E113: =IF(E112<$H$22,E112+1,IF(Table_1[[#This Row],[SALDO INICIAL]]<=0,"")) -> 64 | F113: 2030-06-05 | G113: 2319456.904 | H113: 68565.91936 | J113: 68565.91936 | K113: 46389.13808 | L113: 22176.78127 | M113: 2297280.123 | N113: 0.02
E114: =IF(E113<$H$22,E113+1,IF(Table_1[[#This Row],[SALDO INICIAL]]<=0,"")) -> 65 | F114: 2030-07-05 | G114: 2297280.123 | H114: 68565.91936 | J114: 68565.91936 | K114: 45945.60246 | L114: 22620.3169 | M114: 2274659.806 | N114: 0.02
E115: =IF(E114<$H$22,E114+1,IF(Table_1[[#This Row],[SALDO INICIAL]]<=0,"")) -> 66 | F115: 2030-08-05 | G115: 2274659.806 | H115: =IF($G115>IF($E115<=$G$23,$N$27,IF($E115<=$G$24+$G$23,$N$28,"")),IF($E115<=$G$23,$N$27,IF($E115<=$G$24+$G$23,$N$28,"")),$G115+$K115) -> 68565.91936 | J115: =SUM(H115:I115) -> 68565.91936 | K115: 45493.19612 | L115: =J115-K115 -> 23072.72324 | M115: =G115-L115 -> 2251587.083 | N115: =IF($E115<=$G$23,$H$23,IF($E115<=$G$24+$G$23,$H$24,"")) -> 0.02
E116: =IF(E115<$H$22,E115+1,IF(Table_1[[#This Row],[SALDO INICIAL]]<=0,"")) -> 67 | F116: =EDATE($F$50,E115) -> 2030-09-05 | G116: =M115 -> 2251587.083 | H116: 68565.91936 | J116: 68565.91936 | K116: =G116*N116 -> 45031.74165 | L116: 23534.1777 | M116: 2228052.905 | N116: 0.02
E117: =IF(E116<$H$22,E116+1,IF(Table_1[[#This Row],[SALDO INICIAL]]<=0,"")) -> 68 | F117: 2030-10-05 | G117: 2228052.905 | H117: 68565.91936 | J117: 68565.91936 | K117: =G117*N117 -> 44561.0581 | L117: 24004.86126 | M117: 2204048.044 | N117: =IF($E117<=$G$23,$H$23,IF($E117<=$G$24+$G$23,$H$24,"")) -> 0.02
E118: =IF(E117<$H$22,E117+1,IF(Table_1[[#This Row],[SALDO INICIAL]]<=0,"")) -> 69 | F118: 2030-11-05 | G118: 2204048.044 | H118: 68565.91936 | J118: 68565.91936 | K118: 44080.96087 | L118: 24484.95848 | M118: 2179563.085 | N118: 0.02
E119: =IF(E118<$H$22,E118+1,IF(Table_1[[#This Row],[SALDO INICIAL]]<=0,"")) -> 70 | F119: 2030-12-05 | G119: 2179563.085 | H119: 68565.91936 | J119: 68565.91936 | K119: 43591.2617 | L119: 24974.65765 | M119: 2154588.428 | N119: 0.02
E120: =IF(E119<$H$22,E119+1,IF(Table_1[[#This Row],[SALDO INICIAL]]<=0,"")) -> 71 | F120: 2031-01-05 | G120: 2154588.428 | H120: 68565.91936 | J120: 68565.91936 | K120: 43091.76855 | L120: 25474.1508 | M120: 2129114.277 | N120: 0.02
E121: =IF(E120<$H$22,E120+1,IF(Table_1[[#This Row],[SALDO INICIAL]]<=0,"")) -> 72 | F121: 2031-02-05 | G121: 2129114.277 | H121: 68565.91936 | J121: 68565.91936 | K121: 42582.28554 | L121: 25983.63382 | M121: 2103130.643 | N121: 0.02
E122: =IF(E121<$H$22,E121+1,IF(Table_1[[#This Row],[SALDO INICIAL]]<=0,"")) -> 73 | F122: 2031-03-05 | G122: 2103130.643 | H122: 68565.91936 | J122: 68565.91936 | K122: 42062.61286 | L122: 26503.3065 | M122: 2076627.336 | N122: 0.02
E123: =IF(E122<$H$22,E122+1,IF(Table_1[[#This Row],[SALDO INICIAL]]<=0,"")) -> 74 | F123: 2031-04-05 | G123: 2076627.336 | H123: 68565.91936 | J123: 68565.91936 | K123: 41532.54673 | L123: 27033.37263 | M123: 2049593.964 | N123: 0.02
E124: =IF(E123<$H$22,E123+1,IF(Table_1[[#This Row],[SALDO INICIAL]]<=0,"")) -> 75 | F124: 2031-05-05 | G124: 2049593.964 | H124: 68565.91936 | J124: 68565.91936 | K124: =G124*N124 -> 40991.87928 | L124: 27574.04008 | M124: 2022019.924 | N124: 0.02
E125: =IF(E124<$H$22,E124+1,IF(Table_1[[#This Row],[SALDO INICIAL]]<=0,"")) -> 76 | F125: 2031-06-05 | G125: 2022019.924 | H125: 68565.91936 | J125: 68565.91936 | K125: =G125*N125 -> 40440.39848 | L125: 28125.52088 | M125: 1993894.403 | N125: 0.02
E126: =IF(E125<$H$22,E125+1,IF(Table_1[[#This Row],[SALDO INICIAL]]<=0,"")) -> 77 | F126: 2031-07-05 | G126: 1993894.403 | H126: 68565.91936 | J126: 68565.91936 | K126: 39877.88806 | L126: 28688.0313 | M126: 1965206.372 | N126: 0.02
E127: =IF(E126<$H$22,E126+1,IF(Table_1[[#This Row],[SALDO INICIAL]]<=0,"")) -> 78 | F127: 2031-08-05 | G127: 1965206.372 | H127: 68565.91936 | J127: 68565.91936 | K127: 39304.12743 | L127: 29261.79192 | M127: 1935944.58 | N127: 0.02
E128: =IF(E127<$H$22,E127+1,IF(Table_1[[#This Row],[SALDO INICIAL]]<=0,"")) -> 79 | F128: 2031-09-05 | G128: 1935944.58 | H128: 68565.91936 | J128: 68565.91936 | K128: 38718.89159 | L128: 29847.02776 | M128: 1906097.552 | N128: 0.02
E129: =IF(E128<$H$22,E128+1,IF(Table_1[[#This Row],[SALDO INICIAL]]<=0,"")) -> 80 | F129: 2031-10-05 | G129: 1906097.552 | H129: 68565.91936 | J129: 68565.91936 | K129: 38121.95104 | L129: 30443.96832 | M129: 1875653.584 | N129: 0.02
E130: =IF(E129<$H$22,E129+1,IF(Table_1[[#This Row],[SALDO INICIAL]]<=0,"")) -> 81 | F130: 2031-11-05 | G130: 1875653.584 | H130: 68565.91936 | J130: 68565.91936 | K130: 37513.07167 | L130: 31052.84768 | M130: 1844600.736 | N130: 0.02
E131: =IF(E130<$H$22,E130+1,IF(Table_1[[#This Row],[SALDO INICIAL]]<=0,"")) -> 82 | F131: 2031-12-05 | G131: 1844600.736 | H131: 68565.91936 | J131: 68565.91936 | K131: 36892.01472 | L131: 31673.90464 | M131: 1812926.831 | N131: 0.02
E132: =IF(E131<$H$22,E131+1,IF(Table_1[[#This Row],[SALDO INICIAL]]<=0,"")) -> 83 | F132: 2032-01-05 | G132: 1812926.831 | H132: 68565.91936 | J132: 68565.91936 | K132: 36258.53663 | L132: 32307.38273 | M132: 1780619.449 | N132: 0.02
E133: =IF(E132<$H$22,E132+1,IF(Table_1[[#This Row],[SALDO INICIAL]]<=0,"")) -> 84 | F133: 2032-02-05 | G133: 1780619.449 | H133: 68565.91936 | J133: 68565.91936 | K133: 35612.38897 | L133: 32953.53039 | M133: 1747665.918 | N133: 0.02
E134: =IF(E133<$H$22,E133+1,IF(Table_1[[#This Row],[SALDO INICIAL]]<=0,"")) -> 85 | F134: 2032-03-05 | G134: 1747665.918 | H134: 68565.91936 | J134: 68565.91936 | K134: 34953.31836 | L134: 33612.60099 | M134: 1714053.317 | N134: 0.02
E135: =IF(E134<$H$22,E134+1,IF(Table_1[[#This Row],[SALDO INICIAL]]<=0,"")) -> 86 | F135: 2032-04-05 | G135: 1714053.317 | H135: 68565.91936 | J135: 68565.91936 | K135: 34281.06634 | L135: 34284.85301 | M135: 1679768.464 | N135: 0.02
E136: =IF(E135<$H$22,E135+1,IF(Table_1[[#This Row],[SALDO INICIAL]]<=0,"")) -> 87 | F136: 2032-05-05 | G136: 1679768.464 | H136: 68565.91936 | J136: 68565.91936 | K136: 33595.36928 | L136: 34970.55007 | M136: 1644797.914 | N136: 0.02
E137: =IF(E136<$H$22,E136+1,IF(Table_1[[#This Row],[SALDO INICIAL]]<=0,"")) -> 88 | F137: 2032-06-05 | G137: 1644797.914 | H137: 68565.91936 | J137: 68565.91936 | K137: =G137*N137 -> 32895.95828 | L137: 35669.96108 | M137: 1609127.953 | N137: 0.02
E138: =IF(E137<$H$22,E137+1,IF(Table_1[[#This Row],[SALDO INICIAL]]<=0,"")) -> 89 | F138: 2032-07-05 | G138: 1609127.953 | H138: 68565.91936 | J138: 68565.91936 | K138: =G138*N138 -> 32182.55906 | L138: 36383.3603 | M138: 1572744.593 | N138: 0.02
E139: =IF(E138<$H$22,E138+1,IF(Table_1[[#This Row],[SALDO INICIAL]]<=0,"")) -> 90 | F139: 2032-08-05 | G139: 1572744.593 | H139: 68565.91936 | J139: 68565.91936 | K139: 31454.89185 | L139: 37111.0275 | M139: 1535633.565 | N139: 0.02
E140: =IF(E139<$H$22,E139+1,IF(Table_1[[#This Row],[SALDO INICIAL]]<=0,"")) -> 91 | F140: 2032-09-05 | G140: 1535633.565 | H140: 68565.91936 | J140: 68565.91936 | K140: 30712.6713 | L140: 37853.24805 | M140: 1497780.317 | N140: 0.02
E141: =IF(E140<$H$22,E140+1,IF(Table_1[[#This Row],[SALDO INICIAL]]<=0,"")) -> 92 | F141: 2032-10-05 | G141: 1497780.317 | H141: 68565.91936 | J141: 68565.91936 | K141: 29955.60634 | L141: 38610.31301 | M141: 1459170.004 | N141: 0.02
E142: =IF(E141<$H$22,E141+1,IF(Table_1[[#This Row],[SALDO INICIAL]]<=0,"")) -> 93 | F142: 2032-11-05 | G142: 1459170.004 | H142: 68565.91936 | J142: 68565.91936 | K142: 29183.40008 | L142: 39382.51927 | M142: 1419787.485 | N142: 0.02
E143: =IF(E142<$H$22,E142+1,IF(Table_1[[#This Row],[SALDO INICIAL]]<=0,"")) -> 94 | F143: 2032-12-05 | G143: 1419787.485 | H143: 68565.91936 | J143: 68565.91936 | K143: 28395.7497 | L143: 40170.16966 | M143: 1379617.315 | N143: 0.02
E144: =IF(E143<$H$22,E143+1,IF(Table_1[[#This Row],[SALDO INICIAL]]<=0,"")) -> 95 | F144: 2033-01-05 | G144: 1379617.315 | H144: 68565.91936 | J144: 68565.91936 | K144: 27592.3463 | L144: 40973.57305 | M144: 1338643.742 | N144: 0.02
E145: =IF(E144<$H$22,E144+1,IF(Table_1[[#This Row],[SALDO INICIAL]]<=0,"")) -> 96 | F145: 2033-02-05 | G145: 1338643.742 | H145: 68565.91936 | J145: 68565.91936 | K145: 26772.87484 | L145: 41793.04451 | M145: 1296850.698 | N145: 0.02
E146: =IF(E145<$H$22,E145+1,IF(Table_1[[#This Row],[SALDO INICIAL]]<=0,"")) -> 97 | F146: 2033-03-05 | G146: 1296850.698 | H146: 68565.91936 | J146: 68565.91936 | K146: 25937.01395 | L146: 42628.9054 | M146: 1254221.792 | N146: 0.02
E147: =IF(E146<$H$22,E146+1,IF(Table_1[[#This Row],[SALDO INICIAL]]<=0,"")) -> 98 | F147: 2033-04-05 | G147: 1254221.792 | H147: 68565.91936 | J147: 68565.91936 | K147: 25084.43584 | L147: 43481.48351 | M147: 1210740.309 | N147: 0.02
E148: =IF(E147<$H$22,E147+1,IF(Table_1[[#This Row],[SALDO INICIAL]]<=0,"")) -> 99 | F148: 2033-05-05 | G148: 1210740.309 | H148: 68565.91936 | J148: 68565.91936 | K148: 24214.80617 | L148: 44351.11318 | M148: 1166389.196 | N148: 0.02
E149: =IF(E148<$H$22,E148+1,IF(Table_1[[#This Row],[SALDO INICIAL]]<=0,"")) -> 100 | F149: 2033-06-05 | G149: 1166389.196 | H149: 68565.91936 | J149: 68565.91936 | K149: 23327.78391 | L149: 45238.13545 | M149: 1121151.06 | N149: 0.02
E150: =IF(E149<$H$22,E149+1,IF(Table_1[[#This Row],[SALDO INICIAL]]<=0,"")) -> 101 | F150: 2033-07-05 | G150: 1121151.06 | H150: 68565.91936 | J150: 68565.91936 | K150: 22423.0212 | L150: 46142.89816 | M150: 1075008.162 | N150: 0.02
E151: =IF(E150<$H$22,E150+1,IF(Table_1[[#This Row],[SALDO INICIAL]]<=0,"")) -> 102 | F151: 2033-08-05 | G151: 1075008.162 | H151: 68565.91936 | J151: 68565.91936 | K151: 21500.16324 | L151: 47065.75612 | M151: 1027942.406 | N151: 0.02
E152: =IF(E151<$H$22,E151+1,IF(Table_1[[#This Row],[SALDO INICIAL]]<=0,"")) -> 103 | F152: 2033-09-05 | G152: 1027942.406 | H152: 68565.91936 | J152: 68565.91936 | K152: =G152*N152 -> 20558.84812 | L152: 48007.07124 | M152: 979935.3346 | N152: 0.02
E153: =IF(E152<$H$22,E152+1,IF(Table_1[[#This Row],[SALDO INICIAL]]<=0,"")) -> 104 | F153: 2033-10-05 | G153: 979935.3346 | H153: 68565.91936 | J153: 68565.91936 | K153: =G153*N153 -> 19598.70669 | L153: 48967.21267 | M153: 930968.1219 | N153: 0.02
E154: =IF(E153<$H$22,E153+1,IF(Table_1[[#This Row],[SALDO INICIAL]]<=0,"")) -> 105 | F154: 2033-11-05 | G154: 930968.1219 | H154: 68565.91936 | J154: 68565.91936 | K154: 18619.36244 | L154: 49946.55692 | M154: 881021.565 | N154: 0.02
E155: =IF(E154<$H$22,E154+1,IF(Table_1[[#This Row],[SALDO INICIAL]]<=0,"")) -> 106 | F155: 2033-12-05 | G155: 881021.565 | H155: 68565.91936 | J155: 68565.91936 | K155: 17620.4313 | L155: 50945.48806 | M155: 830076.0769 | N155: 0.02
E156: =IF(E155<$H$22,E155+1,IF(Table_1[[#This Row],[SALDO INICIAL]]<=0,"")) -> 107 | F156: 2034-01-05 | G156: 830076.0769 | H156: 68565.91936 | J156: 68565.91936 | K156: 16601.52154 | L156: 51964.39782 | M156: 778111.6791 | N156: 0.02
E157: =IF(E156<$H$22,E156+1,IF(Table_1[[#This Row],[SALDO INICIAL]]<=0,"")) -> 108 | F157: 2034-02-05 | G157: 778111.6791 | H157: 68565.91936 | J157: 68565.91936 | K157: 15562.23358 | L157: 53003.68577 | M157: 725107.9933 | N157: 0.02
E158: =IF(E157<$H$22,E157+1,IF(Table_1[[#This Row],[SALDO INICIAL]]<=0,"")) -> 109 | F158: 2034-03-05 | G158: 725107.9933 | H158: 68565.91936 | J158: 68565.91936 | K158: 14502.15987 | L158: 54063.75949 | M158: 671044.2338 | N158: 0.02
E159: =IF(E158<$H$22,E158+1,IF(Table_1[[#This Row],[SALDO INICIAL]]<=0,"")) -> 110 | F159: 2034-04-05 | G159: 671044.2338 | H159: 68565.91936 | J159: 68565.91936 | K159: =G159*N159 -> 13420.88468 | L159: 55145.03468 | M159: 615899.1992 | N159: 0.02
E160: =IF(E159<$H$22,E159+1,IF(Table_1[[#This Row],[SALDO INICIAL]]<=0,"")) -> 111 | F160: 2034-05-05 | G160: 615899.1992 | H160: 68565.91936 | J160: 68565.91936 | K160: =G160*N160 -> 12317.98398 | L160: 56247.93537 | M160: 559651.2638 | N160: 0.02
E161: =IF(E160<$H$22,E160+1,IF(Table_1[[#This Row],[SALDO INICIAL]]<=0,"")) -> 112 | F161: 2034-06-05 | G161: 559651.2638 | H161: 68565.91936 | J161: 68565.91936 | K161: 11193.02528 | L161: 57372.89408 | M161: 502278.3697 | N161: 0.02
E162: =IF(E161<$H$22,E161+1,IF(Table_1[[#This Row],[SALDO INICIAL]]<=0,"")) -> 113 | F162: 2034-07-05 | G162: 502278.3697 | H162: 68565.91936 | J162: 68565.91936 | K162: 10045.56739 | L162: 58520.35196 | M162: 443758.0177 | N162: 0.02
E163: =IF(E162<$H$22,E162+1,IF(Table_1[[#This Row],[SALDO INICIAL]]<=0,"")) -> 114 | F163: 2034-08-05 | G163: 443758.0177 | H163: 68565.91936 | J163: 68565.91936 | K163: 8875.160355 | L163: 59690.759 | M163: 384067.2587 | N163: 0.02
E164: =IF(E163<$H$22,E163+1,IF(Table_1[[#This Row],[SALDO INICIAL]]<=0,"")) -> 115 | F164: 2034-09-05 | G164: 384067.2587 | H164: 68565.91936 | J164: 68565.91936 | K164: 7681.345175 | L164: 60884.57418 | M164: 323182.6846 | N164: 0.02
E165: =IF(E164<$H$22,E164+1,IF(Table_1[[#This Row],[SALDO INICIAL]]<=0,"")) -> 116 | F165: 2034-10-05 | G165: 323182.6846 | H165: 68565.91936 | J165: 68565.91936 | K165: 6463.653691 | L165: 62102.26567 | M165: 261080.4189 | N165: 0.02
E166: =IF(E165<$H$22,E165+1,IF(Table_1[[#This Row],[SALDO INICIAL]]<=0,"")) -> 117 | F166: 2034-11-05 | G166: 261080.4189 | H166: 68565.91936 | J166: 68565.91936 | K166: 5221.608378 | L166: 63344.31098 | M166: 197736.1079 | N166: 0.02
E167: =IF(E166<$H$22,E166+1,IF(Table_1[[#This Row],[SALDO INICIAL]]<=0,"")) -> 118 | F167: 2034-12-05 | G167: 197736.1079 | H167: 68565.91936 | J167: 68565.91936 | K167: 3954.722158 | L167: 64611.1972 | M167: 133124.9107 | N167: 0.02
E168: =IF(E167<$H$22,E167+1,IF(Table_1[[#This Row],[SALDO INICIAL]]<=0,"")) -> 119 | F168: 2035-01-05 | G168: 133124.9107 | H168: 68565.91936 | J168: 68565.91936 | K168: 2662.498214 | L168: 65903.42114 | M168: 67221.48957 | N168: 0.02
E169: =IF(E168<$H$22,E168+1,IF(Table_1[[#This Row],[SALDO INICIAL]]<=0,"")) -> 120 | F169: 2035-02-05 | G169: 67221.48957 | H169: 68565.91936 | J169: 68565.91936 | K169: 1344.429791 | L169: 67221.48957 | M169: 0 | N169: 0.02
E170: =IF(E169<$H$22,E169+1,IF(Table_1[[#This Row],[SALDO INICIAL]]<=0,"")) ->  | F170: 2035-03-05 | G170: 0
E171: =IF(E170<$H$22,E170+1,IF(Table_1[[#This Row],[SALDO INICIAL]]<=0,"")) -> 
E172: =IF(E171<$H$22,E171+1,IF(Table_1[[#This Row],[SALDO INICIAL]]<=0,"")) -> 
E173: =SUBTOTAL(102,SIMULADOR!$E$50:$E$172) -> 120 | F173: =VLOOKUP(E173,SIMULADOR!$E$49:$M$172,2,0) -> 2035-02-05 | I173: =SUBTOTAL(109,SIMULADOR!$I$50:$I$172) -> 0 | J173: =SUBTOTAL(109,SIMULADOR!$J$51:$J$169) -> 6917316.079 | K173: =SUBTOTAL(109,SIMULADOR!$K$50:$K$172) ->  | L173: =SUBTOTAL(109,SIMULADOR!$L$50:$L$172) ->  | M173: =VLOOKUP(E173,SIMULADOR!$E$49:$M$172,9,0)-SIMULADOR!$I$173 -> 0

Sheet DATOS DEL CLIENTE
B2: INFORMACIÓN DEL CLIENTE
B4: USO DE PROPIEDAD: | M4: TIPO DE CONTRATO:
B6: DATOS DE PERSONA FISICA
B7: NOMBRE: | AE7: CEL:
B8: DOMILICIO:
B9: VIVES EN CASA: | H9: OTRO | K9: CORREO: | AC9: NACIONALIDAD:
B10: LUGAR DE NACIMIENTO: | P10: FECHA DE NACIMIENTO: | Y10: RFC: | AF10: CURP:
B11: ESTUDIOS: | H11: OTRO | P11: EMPREA LABORA: | AB11: ANTIGÜEDAD:
B12: ESPECIFICAR: | P12: PUESTO: | AB12: TELÉFONO:
B13: ESTADO CIVIL: | H13: SOLTERO | K13: APLICA BIENES: | P13: NO
B15: NOMBRE CONYUGE: | AE15: CEL:
B16: DOMILICIO:
B17: VIVES EN CASA: | H17: OTRO | K17: CORREO: | AC17: NACIONALIDAD:
B18: LUGAR DE NACIMIENTO: | P18: FECHA DE NACIMIENTO: | Y18: RFC: | AF18: CURP:
B19: ESTUDIOS: | H19: OTRO | P19: EMPREA LABORA: | AB19: ANTIGÜEDAD:
B20: ESPECIFICAR: | P20: PUESTO: | AB20: TELÉFONO:
B21: DATOS COPROPIEDAD
B22: NOMBRE 1: | AE22: CEL:
A23: ; | B23: DOMILICIO:
B24: VIVES EN CASA: | H24: OTRO | L24: CORREO: | AC24: NACIONALIDAD:
B25: LUGAR DE NACIMIENTO: | P25: FECHA DE NACIMIENTO: | Y25: RFC: | AF25: CURP:
B26: ESTUDIOS: | H26: OTRO | P26: EMPREA LABORA: | AB26: ANTIGÜEDAD:
B27: ESPECIFICAR: | P27: PUESTO: | AB27: TELÉFONO:
B28: ESTADO CIVIL: | H28: OTRO | K28: APLICA BIENES: | P28: NO
B30: NOMBRE 2: | AE30: CEL:
B31: DOMILICIO:
B32: VIVES EN CASA: | H32: OTRO | K32: CORREO: | AC32: NACIONALIDAD:
B33: LUGAR DE NACIMIENTO: | P33: FECHA DE NACIMIENTO: | Y33: RFC: | AF33: CURP:
B34: ESTUDIOS: | H34: OTRO | P34: EMPREA LABORA: | AB34: ANTIGÜEDAD:
B35: ESPECIFICAR: | P35: PUESTO: | AB35: TELÉFONO:
B36: ESTADO CIVIL: | H36: OTRO | K36: APLICA BIENES: | P36: NO
B38: NOMBRE 3: | AE38: CEL:
B39: DOMILICIO:
B40: VIVES EN CASA: | H40: OTRO | K40: CORREO: | AC40: NACIONALIDAD:
B41: LUGAR DE NACIMIENTO: | P41: FECHA DE NACIMIENTO: | Y41: RFC: | AF41: CURP:
B42: ESTUDIOS: | H42: OTRO | P42: EMPREA LABORA: | AB42: ANTIGÜEDAD:
B43: ESPECIFICAR: | P43: PUESTO: | AB43: TELÉFONO:
B44: ESTADO CIVIL: | H44: OTRO | K44: APLICA BIENES: | P44: NO
B45: DATOS DE PERSONA MORAL
B46: NOMBRE: | AE46: CEL:
B47: DOMILICIO:
B48: CORREO: | N48: RFC: | U48: GIRO: | AB48: ACTIVIDAD:
B49: ACTA CONSTITUTIVA
B50: FOLIO: | AC50: CIUDAD DE REGISTRO:
B51: FECHA DE REGISTRO: | AC51: OBJETO SOCIAL:
B52: No NOTARIA: | AC52: FOLIO MERCANTIL:
B53: NOMBRE NOTARIO:
B55: REPRESENTANTE LEGAL 1: | AE55: CEL:
B56: DOMILICIO:
B57: VIVES EN CASA: | H57: OTRO | K57: CORREO: | AC57: NACIONALIDAD:
B58: LUGAR DE NACIMIENTO: | P58: FECHA DE NACIMIENTO: | Y58: RFC: | AF58: CURP:
B59: ESTUDIOS: | H59: OTRO | P59: EMPREA LABORA: | AB59: ANTIGÜEDAD:
B60: ESPECIFICAR: | P60: PUESTO: | AB60: TELÉFONO:
B61: ESTADO CIVIL: | H61: OTRO | K61: APLICA BIENES: | P61: NO
B63: REPRESENTANTE LEGAL 2: | AE63: CEL:
B64: DOMILICIO:
B65: VIVES EN CASA: | H65: OTRO | K65: CORREO: | AC65: NACIONALIDAD:
B66: LUGAR DE NACIMIENTO: | P66: FECHA DE NACIMIENTO: | Y66: RFC: | AF66: CURP:
B67: ESTUDIOS: | H67: OTRO | P67: EMPREA LABORA: | AB67: ANTIGÜEDAD:
B68: ESPECIFICAR: | P68: PUESTO: | AB68: TELÉFONO:
B69: ESTADO CIVIL: | H69: OTRO | K69: APLICA BIENES: | P69: NO
B71: REPRESENTANTE LEGAL 3: | AE71: CEL:
B72: DOMILICIO:
B73: VIVES EN CASA: | H73: OTRO | K73: CORREO: | AC73: NACIONALIDAD:
B74: LUGAR DE NACIMIENTO: | P74: FECHA DE NACIMIENTO: | Y74: RFC: | AF74: CURP:
B75: ESTUDIOS: | H75: OTRO | P75: EMPREA LABORA: | AB75: ANTIGÜEDAD:
B76: ESPECIFICAR: | P76: PUESTO: | AB76: TELÉFONO:
B77: ESTADO CIVIL: | H77: OTRO | K77: APLICA BIENES: | P77: NO
B79: DOCUMENTACIÓN ENTREGADA
B80: ESCRITURACIÓN
B81: PERSONA FÍSICA | Y81: PERSONA MORAL
C82: *Identificación oficial vigente. | AC82: *Identificación oficial del representante legal vigente.
C83: *Acta de nacimiento. | AC83: *Acta de nacimiento del representante legal.
C84: *Acta de matrimonio ( en caso de ser casado). | AC84: *Acta constitutiva
C85: *Constancia de situación fiscal | AC85: *Constancia de situacón fiscal empre y representante legal
C86: *CURP . | AC86: *CURP del representante legal
C87: *Comprobante de domicilio | AC87: *Comprobante de Domicilio (Empresa y Representante legal).
C88: Adjuntar en ambos casos | AC88: *Poder en el que ostenta las facultades otorgadas al representante legal
C89: Simulador y hoja de Registro
C90: Recibo y Voucher, de Apartado y/o enganche. | AB90: EN CASO DE SER EXTRANJERO ANEXAR FORMA MIGRATORIA
C91: Evidencia de Envio de Proceso de Facturación y Pago. | AB91: En caso de ser casado por sociedad conyugal anexar la documentación de ambas personas
C92: Evidencia de Envio de Reglamento de Administración y Contrucción.
C93: Anexar Check-lis Firmado por cliente (Despues de firmar contrato anexar). | AB93: En caso de ser por copropiedad anexar documentación de ambos.

Sheet DATOS (hidden)
A1: NOMBRE PARQUES | B1: IMAGEN PARQUE
A2: AEROPUERTO
A3: CELTA
A4: GAMMA II
A5: SANTA ROSA
A6: SUR 57.
A7: CALAMANDA
D14: PARQUES
D15: CELTA | F15: PROMOCIONES | H15: ESTUDIOS | J15: SUR 57
D16: AEROPUERTO (Nave) | F16: PROMOCIONES NAVETEC CUARTO TRIMESTRE "20 ANIVERSARIOGRUPO CCIMA" | H16: DOCTORADO | J16: N/A
D17: AEROPUERTO (Lote) | F17: PROMOCIONES NAVETEC TERCER TRIMESTRE "DE JULIO A SEPTIEMBRE 2022" | H17: MAESTRIA | J17: FINANCIAMIENTO 1
D18: GAMMA II ETAPA 2 | F18: PROMOCIONES NAVETEC SEGUNDO TRIMESTRE "DE ABRIL A JUNIO 2022" | H18: LICENCIATURA | J18: FINANCIAMIENTO 2
D19: CALAMANDA (NAVE) | F19: PROMOCIONES NAVETEC PRIMER TRIMESTRE "ARRANCA 2022" | H19: INGENIERÍA | J19: FINANCIAMIENTO 3
D20: CALAMANDA (LOCAL) | H20: TSU
D21: SUR_57 | F21: ENGANCHE | H21: PREPARATORIA
F22: DIFERIDO | H22: SECUNDARIA
F23: NORMAL | H23: PRIMARIA
H24: OTRO
D25: TIPO DE ENGANCHE | F25: ESTADO CIVIL
D26: N/A | F26: CASADO | H26: VIVE EN CASA
D27: ENGANCHE DIFERIDO: | F27: SOLTERO | H27: PROPIA
D28: ENGANCHE DIFERIDO C/IVA: | H28: RENTA
H29: FAMILIAR
D30: ENGANCHE DIERIDO | F30: TIPO CONTRATO | H30: OTRO
D31: NAVE-CDA 10%,10% 10%
D32: LOTE-AE,CELTA, 10%,10%,10% | F32: PERSONA FISICA | H32: USO DE PROPIEDAD
D33: LOCAL A CDA 10%, 10%, 10% | F33: PERSONA MORAL
D34: LOCAL B CDA 10%, 10%, 10% | F34: COPROPIEDAD | H34: PATRIMONIO
D35: NAVE-AE 10%,10% 10% | H35: INVERSIÓN
F36: APLICAN BIENES
D37: TIPO | F37: NO
D38: ESTANDAR | F38: SI
D39: PREMIUM
M42: MASTER PARQUES | N42: IMAGEN
M43: AEROPUERTO
M44: CELTA
M45: GAMMA II
M46: SANTA ROSA
M47: SUR 57.
M48: CALAMANDA
